[Event "Klatovy Open-B 2024"]
[Site "Klatovy"]
[Date "2024.07.05"]
[Round "7.1"]
[White "Kaderabek, Jiri"]
[Black "Beran, Jakub"]
[Result "1/2-1/2"]
[ECO "B51"]
[WhiteElo "1984"]
[BlackElo "1791"]
[Annotator "NA RC"]
[PlyCount "74"]
[EventDate "2024.06.21"]
[EventType "swiss"]
[EventCountry "CZE"]
[SourceTitle "playchess.com"]
[Source "ChessBase"]
[SourceQuality "1"]
[TimeControl "40/7200:0"]

1. e4 {[%emt 0:03:09]} c5 {[%emt 0:00:00]} 2. Nf3 {[%emt 0:00:00]} Nc6 {[%emt 0:00:00]} 3. Bb5 {[%emt 0:00:00]} d6 {[%emt 0:00:00]} 4. Bxc6+ {[%emt 0:00:00]} bxc6 {[%emt 0:00:00]} 5. e5 {[%emt 0:00:00]} d5 {[%emt 0:00:00]} 6. h3 {[%emt 0:00:00]} e6 {[%emt 0:03:06]} 7. O-O {[%emt 0:00:00]} Ne7 {[%emt 0:00:10]} 8. d3 {[%emt 0:02:43]} Ng6 {[%emt 0:00:32]} 9. b3 {[%emt 0:05:06]} a5 {[%emt 0:01:07]} 10. Nc3 {[%emt 0:05:34]} Qc7 {[%emt 0:02:48]} 11. Qe2 {[%emt 0:02:16]} Ba6 {[%emt 0:00:07]} 12. Ba3 {[%emt 0:04:04]} Bb5 {[%emt 0:01:51]} 13. Qe3 {[%emt 0:15:07]} d4 {[%emt 0:07:37]} 14. Nxb5 {[%emt 0:00:00]} cxb5 {[%emt 0:00:00]} 15. Qe4 {[%emt 0:00:00]} Rd8 {[%emt 0:01:05]} 16. Bb2 {[%emt 0:03:26]} Be7 {[%emt 0:04:49]} 17. a4 {[%emt 0:00:16]} b4 {[%emt 0:00:28]} 18. Rae1 {[%emt 0:00:52]} Rd5 {[%emt 0:01:58]} 19. Bc1 {[%emt 0:01:33]} Kd7 {[%emt 0:04:04]} 20. Re2 {[%emt 0:05:32]} Kc8 {[%emt 0:22:16]} 21. Rfe1 {[%emt 0:00:09]} Kb8 {[%emt 0:00:15]} 22. Qg4 {[%emt 0:00:37]} Qd8 {[%emt 0:05:03]} 23. Re4 {[%emt 0:05:45]} Kb7 {[%emt 0:05:28]} 24. Qg3 {[%emt 0:04:30]} h6 {[%emt 0:04:57]} 25. h4 {[%emt 0:01:27]} Bf8 {[%emt 0:02:30]} 26. h5 {[%emt 0:05:44]} Ne7 {[%emt 0:00:42]} 27. Nh4 {[%emt 0:04:38]} Rg8 {[%emt 0:04:00]} 28. Qf3 {[%emt 0:02:12]} g5 {[%emt 0:02:12]} 29. hxg6 {[%emt 0:00:54]} fxg6 {[%emt 0:00:00]} 30. Qf7 {[%emt 0:01:56]} g5 {[%emt 0:00:00]} 31. Nf3 {[%emt 0:00:36]} Qc8 {[%emt 0:00:32]} 32. Nd2 {[%emt 0:01:58]} Rg7 {[%emt 0:00:05]} 33. Qh5 {[%emt 0:00:10]} Nf5 {[%emt 0:07:52]} 34. Nc4 {[%emt 0:00:25]} Ka6 {[%emt 0:00:05]} 35. Rg4 {[%emt 0:02:55]} Be7 {[%emt 0:01:22]} 36. Bd2 {[%emt 0:02:40]} Rd8 {[%emt 0:01:07]} 37. Rge4 {[%emt 0:01:05]} Qc6 {[%emt 0:31:52]} 1/2-1/2

[Event "Klatovy Open-B 2024"]
[Site "Klatovy"]
[Date "2024.07.05"]
[Round "7.4"]
[White "Koper, Stefan"]
[Black "Bukvaj, Jan"]
[Result "1-0"]
[ECO "E90"]
[WhiteElo "1845"]
[BlackElo "1652"]
[Annotator "NA RC"]
[PlyCount "67"]
[EventDate "2024.06.21"]
[EventType "swiss"]
[EventCountry "CZE"]
[SourceTitle "playchess.com"]
[Source "ChessBase"]
[SourceQuality "1"]
[TimeControl "40/7200:0"]

1. d4 {[%emt 0:00:00]} Nf6 {[%emt 0:00:00]} 2. c4 {[%emt 0:00:00]} g6 {[%emt 0:00:00]} 3. Nc3 {[%emt 0:00:00]} Bg7 {[%emt 0:00:00]} 4. e4 {[%emt 0:00:00]} d6 {[%emt 0:00:00]} 5. h3 {[%emt 0:00:00]} O-O {[%emt 0:00:00]} 6. Nf3 {[%emt 0:00:00]} Nbd7 {[%emt 0:00:41]} 7. Bd3 {[%emt 0:00:44]} e5 {[%emt 0:05:08]} 8. d5 {[%emt 0:00:00]} Nh5 {[%emt 0:08:54]} 9. g3 {[%emt 0:04:38]} Nc5 {[%emt 0:10:45]} 10. Bc2 {[%emt 0:00:00]} h6 {[%emt 0:07:17]} 11. b4 {[%emt 0:03:09]} Na6 {[%emt 0:02:59]} 12. a3 {[%emt 0:00:00]} f5 {[%emt 0:11:55]} 13. Nd2 {[%emt 0:08:33]} f4 {[%emt 0:04:44]} 14. g4 {[%emt 0:00:01]} Nf6 {[%emt 0:02:16]} 15. f3 {[%emt 0:00:00]} g5 {[%emt 0:03:21]} 16. Nb3 {[%emt 0:00:49]} Kf7 {[%emt 0:06:12]} 17. Bb2 {[%emt 0:03:34]} h5 {[%emt 0:06:31]} 18. Qe2 {[%emt 0:00:00]} Rh8 {[%emt 0:05:03]} 19. O-O-O {[%emt 0:00:00]} hxg4 {[%emt 0:02:40]} 20. hxg4 {[%emt 0:00:00]} Rxh1 {[%emt 0:00:16]} 21. Rxh1 {[%emt 0:00:00]} Qe7 {[%emt 0:00:24]} 22. Bd3 {[%emt 0:00:00]} Bd7 {[%emt 0:02:31]} 23. Kb1 {[%emt 0:05:50]} Rh8 {[%emt 0:11:57]} 24. Rxh8 {[%emt 0:00:00]} Bxh8 {[%emt 0:00:00]} 25. Qf2 {[%emt 0:05:23]} b6 {[%emt 0:03:31]} 26. c5 {[%emt 0:00:00]} Nb8 {[%emt 0:00:59]} 27. c6 {[%emt 0:00:00]} Be8 {[%emt 0:02:29]} 28. a4 {[%emt 0:00:00]} Qd8 {[%emt 0:02:53]} 29. a5 {[%emt 0:04:36]} Ng8 {[%emt 0:07:35]} 30. Bc1 {[%emt 0:01:09]} Bg7 {[%emt 0:01:17]} 31. Qa2 {[%emt 0:00:03]} Qc8 {[%emt 0:03:56]} 32. axb6 {[%emt 0:00:03]} axb6 {[%emt 0:00:00]} 33. Nb5 {[%emt 0:00:00]} Ke7 {[%emt 0:00:46]} 34. Qa8 {[%emt 0:02:43]} 1-0

[Event "Klatovy Open-B 2024"]
[Site "Klatovy"]
[Date "2024.07.05"]
[Round "7.5"]
[White "Stastny, Matej"]
[Black "Chmelik, Ladislav"]
[Result "0-1"]
[ECO "C41"]
[WhiteElo "1674"]
[BlackElo "1795"]
[Annotator "NA RC"]
[PlyCount "64"]
[EventDate "2024.06.21"]
[EventType "swiss"]
[EventCountry "CZE"]
[SourceTitle "playchess.com"]
[Source "ChessBase"]
[SourceQuality "1"]
[TimeControl "40/7200:0"]

1. e4 {[%emt 0:00:00]} d6 {[%emt 0:00:00]} 2. d4 {[%emt 0:00:00]} g6 {[%emt 0:00:00]} 3. Nc3 {[%emt 0:00:00]} Bg7 {[%emt 0:00:00]} 4. Be3 {[%emt 0:00:00]} Nf6 {[%emt 0:00:12]} 5. f3 {[%emt 0:01:30]} O-O {[%emt 0:00:00]} 6. Qd2 {[%emt 0:00:15]} Re8 {[%emt 0:00:00]} 7. Bc4 {[%emt 0:00:09]} Nbd7 {[%emt 0:00:18]} 8. O-O-O {[%emt 0:00:18]} e5 {[%emt 0:01:56]} 9. Nge2 {[%emt 0:01:10]} exd4 {[%emt 0:00:00]} 10. Nxd4 {[%emt 0:00:28]} a6 {[%emt 0:01:12]} 11. Bb3 {[%emt 0:00:50]} Nc5 {[%emt 0:00:31]} 12. g4 {[%emt 0:01:45]} Nxb3+ {[%emt 0:00:23]} 13. Nxb3 {[%emt 0:02:24]} b5 {[%emt 0:02:08]} 14. g5 {[%emt 0:10:10]} Nh5 {[%emt 0:00:21]} 15. Bd4 {[%emt 0:04:05]} Bf8 {[%emt 0:03:36]} 16. Ne2 {[%emt 0:02:36]} Be6 {[%emt 0:02:12]} 17. Ng3 {[%emt 0:07:12]} Ng7 {[%emt 0:13:44]} 18. h4 {[%emt 0:05:30]} c5 {[%emt 0:01:21]} 19. Bf6 {[%emt 0:03:55]} Qc7 {[%emt 0:04:51]} 20. h5 {[%emt 0:11:20]} Rec8 {[%emt 0:01:42]} 21. hxg6 {[%emt 0:07:49]} fxg6 {[%emt 0:00:03]} 22. Qh2 {[%emt 0:14:44]} Ne8 {[%emt 0:00:00]} 23. e5 {[%emt 0:19:05]} Ra7 {[%emt 0:05:37]} 24. Ne4 {[%emt 0:04:15]} d5 {[%emt 0:00:27]} 25. Nc3 {[%emt 0:04:20]} d4 {[%emt 0:02:22]} 26. Ne4 {[%emt 0:00:21]} a5 {[%emt 0:02:18]} 27. Na1 {[%emt 0:03:16]} Bxa2 {[%emt 0:06:48]} 28. b3 {[%emt 0:01:03]} a4 {[%emt 0:00:00]} 29. Qe2 {[%emt 0:01:08]} axb3 {[%emt 0:00:00]} 30. Nxb3 {[%emt 0:00:34]} Bxb3 {[%emt 0:00:00]} 31. cxb3 {[%emt 0:00:00]} Qa5 {[%emt 0:00:21]} 32. Qb2 {[%emt 0:01:04]} c4 {[%emt 0:01:09]} 0-1

[Event "Klatovy Open-B 2024"]
[Site "Klatovy"]
[Date "2024.07.05"]
[Round "7.6"]
[White "Janouskova, Eliska"]
[Black "Rudlof, Jan"]
[Result "0-1"]
[ECO "B13"]
[WhiteElo "1670"]
[BlackElo "1799"]
[Annotator "NA RC"]
[PlyCount "100"]
[EventDate "2024.06.21"]
[EventType "swiss"]
[EventCountry "CZE"]
[SourceTitle "playchess.com"]
[Source "ChessBase"]
[SourceQuality "1"]
[TimeControl "40/7200:0"]

1. e4 {[%emt 0:00:00]} c6 {[%emt 0:00:00]} 2. Nf3 {[%emt 0:00:00]} d5 {[%emt 0:00:00]} 3. Nc3 {[%emt 0:00:00]} Nf6 {[%emt 0:00:00]} 4. exd5 {[%emt 0:03:06]} cxd5 {[%emt 0:00:00]} 5. d4 {[%emt 0:00:47]} Nc6 {[%emt 0:00:40]} 6. Be2 {[%emt 0:01:15]} Bf5 {[%emt 0:00:00]} 7. O-O {[%emt 0:02:37]} h6 {[%emt 0:06:56]} 8. Be3 {[%emt 0:06:46]} e6 {[%emt 0:02:40]} 9. Qd2 {[%emt 0:07:16]} Bb4 {[%emt 0:07:11]} 10. Bd3 {[%emt 0:07:05]} Ne4 {[%emt 0:03:19]} 11. Bxe4 {[%emt 0:03:51]} Bxe4 {[%emt 0:08:48]} 12. Qe2 {[%emt 0:04:07]} Bg6 {[%emt 0:05:40]} 13. a3 {[%emt 0:09:58]} Be7 {[%emt 0:09:50]} 14. Rad1 {[%emt 0:01:12]} O-O {[%emt 0:00:12]} 15. Bf4 {[%emt 0:02:11]} Rc8 {[%emt 0:02:03]} 16. Ne5 {[%emt 0:04:09]} Nxe5 {[%emt 0:01:11]} 17. Bxe5 {[%emt 0:00:23]} Bxa3 {[%emt 0:10:19]} 18. Qb5 {[%emt 0:08:29]} Qb6 {[%emt 0:05:46]} 19. Qxb6 {[%emt 0:01:52]} axb6 {[%emt 0:00:00]} 20. bxa3 {[%emt 0:08:22]} Rxc3 {[%emt 0:00:00]} 21. Rb1 {[%emt 0:00:00]} Rc6 {[%emt 0:07:44]} 22. Rb2 {[%emt 0:01:29]} Bxc2 {[%emt 0:02:15]} 23. Rc1 {[%emt 0:01:41]} Rfc8 {[%emt 0:01:08]} 24. h3 {[%emt 0:00:13]} Ba4 {[%emt 0:00:53]} 25. Rxc6 {[%emt 0:00:00]} Rxc6 {[%emt 0:00:08]} 26. Bb8 {[%emt 0:02:12]} b5 {[%emt 0:01:27]} 27. Bf4 {[%emt 0:02:33]} Rc3 {[%emt 0:04:22]} 28. Bd6 {[%emt 0:04:11]} Rc1+ {[%emt 0:00:31]} 29. Kh2 {[%emt 0:00:05]} Rc4 {[%emt 0:00:03]} 30. Rd2 {[%emt 0:00:39]} g5 {[%emt 0:02:08]} 31. Rd3 {[%emt 0:02:49]} Kg7 {[%emt 0:00:00]} 32. Be5+ {[%emt 0:04:36]} Kg6 {[%emt 0:00:00]} 33. Rf3 {[%emt 0:00:44]} f5 {[%emt 0:00:46]} 34. g4 {[%emt 0:03:16]} f4 {[%emt 0:05:39]} 35. Rd3 {[%emt 0:02:55]} b4 {[%emt 0:00:00]} 36. axb4 {[%emt 0:00:27]} Rxb4 {[%emt 0:00:00]} 37. Bd6 {[%emt 0:03:17]} Rc4 {[%emt 0:00:00]} 38. Rd2 {[%emt 0:01:20]} b5 {[%emt 0:00:00]} 39. Ba3 {[%emt 0:00:43]} b4 {[%emt 0:00:02]} 40. Bb2 {[%emt 0:02:12]} Bc2 {[%emt 0:01:49]} 41. Kg2 {[%emt 2:01:59]} Rc6 {[%emt 2:02:09]} 42. Re2 {[%emt 0:02:07]} Kf7 {[%emt 0:00:01]} 43. Re1 {[%emt 0:00:53]} Be4+ {[%emt 0:07:51]} 44. Kf1 {[%emt 0:01:13]} Rc2 {[%emt 0:00:23]} 45. Ba1 {[%emt 0:01:15]} Ra2 {[%emt 0:05:02]} 46. f3 {[%emt 0:01:56]} Bxf3 {[%emt 0:00:30]} 47. Rb1 {[%emt 0:00:00]} Be4 {[%emt 0:00:09]} 48. Rc1 {[%emt 0:00:00]} Kf6 {[%emt 0:00:00]} 49. Ke1 {[%emt 0:00:00]} b3 {[%emt 0:00:09]} 50. Bc3 {[%emt 0:00:17]} b2 {[%emt 0:00:04]} 0-1

[Event "Klatovy Open-B 2024"]
[Site "Klatovy"]
[Date "2024.07.05"]
[Round "7.7"]
[White "Vasko, Pavel"]
[Black "Svejdar, Pavel"]
[Result "0-1"]
[ECO "C01"]
[WhiteElo "1655"]
[BlackElo "1721"]
[Annotator "NA RC"]
[PlyCount "46"]
[EventDate "2024.06.21"]
[EventType "swiss"]
[EventCountry "CZE"]
[SourceTitle "playchess.com"]
[Source "ChessBase"]
[SourceQuality "1"]
[TimeControl "40/7200:0"]

1. e4 {[%emt 0:00:00]} e6 {[%emt 0:00:00]} 2. d4 {[%emt 0:00:00]} d5 {[%emt 0:00:00]} 3. exd5 {[%emt 0:00:00]} exd5 {[%emt 0:00:00]} 4. Nf3 {[%emt 0:00:00]} Nf6 {[%emt 0:00:00]} 5. Be2 {[%emt 0:00:00]} Be7 {[%emt 0:00:00]} 6. O-O {[%emt 0:00:00]} O-O {[%emt 0:00:00]} 7. h3 {[%emt 0:00:00]} Bf5 {[%emt 0:00:00]} 8. Bd3 {[%emt 0:00:00]} Bxd3 {[%emt 0:03:28]} 9. Qxd3 {[%emt 0:00:00]} Nbd7 {[%emt 0:03:29]} 10. Bf4 {[%emt 0:00:00]} c6 {[%emt 0:03:00]} 11. Nbd2 {[%emt 0:02:13]} a6 {[%emt 0:05:37]} 12. Rfe1 {[%emt 0:00:27]} Re8 {[%emt 0:03:29]} 13. c3 {[%emt 0:00:39]} Nf8 {[%emt 0:04:19]} 14. Nf1 {[%emt 0:06:06]} Ne6 {[%emt 0:03:25]} 15. Bh2 {[%emt 0:01:28]} Bd6 {[%emt 0:03:33]} 16. Re2 {[%emt 0:00:56]} Ne4 {[%emt 0:02:04]} 17. Qc2 {[%emt 0:04:22]} Bxh2+ {[%emt 0:09:21]} 18. N3xh2 {[%emt 0:01:00]} Qg5 {[%emt 0:02:26]} 19. Re3 {[%emt 0:02:57]} Nf4 {[%emt 0:09:02]} 20. Ng3 {[%emt 0:00:00]} Nxg3 {[%emt 0:00:10]} 21. Rxe8+ {[%emt 0:02:05]} Rxe8 {[%emt 0:00:00]} 22. fxg3 {[%emt 0:00:00]} Qxg3 {[%emt 0:02:53]} 23. Nf1 {[%emt 0:00:00]} Qg5 {[%emt 0:14:33]} 0-1

[Event "Klatovy Open-B 2024"]
[Site "Klatovy"]
[Date "2024.07.05"]
[Round "7.8"]
[White "Vo, Daniel"]
[Black "Vrzal, Vaclav"]
[Result "1-0"]
[ECO "B19"]
[WhiteElo "1705"]
[BlackElo "1682"]
[Annotator "NA RC"]
[PlyCount "59"]
[EventDate "2024.06.21"]
[EventType "swiss"]
[EventCountry "CZE"]
[SourceTitle "playchess.com"]
[Source "ChessBase"]
[SourceQuality "1"]
[TimeControl "40/7200:0"]

1. e4 {[%emt 0:00:00]} c6 {[%emt 0:00:00]} 2. d4 {[%emt 0:00:00]} d5 {[%emt 0:00:00]} 3. Nc3 {[%emt 0:00:00]} dxe4 {[%emt 0:00:00]} 4. Nxe4 {[%emt 0:00:00]} Bf5 {[%emt 0:00:00]} 5. Ng3 {[%emt 0:00:00]} Bg6 {[%emt 0:00:00]} 6. h4 {[%emt 0:00:00]} h6 {[%emt 0:00:00]} 7. h5 {[%emt 0:00:00]} Bh7 {[%emt 0:00:00]} 8. Nf3 {[%emt 0:00:00]} Nd7 {[%emt 0:00:00]} 9. Bd3 {[%emt 0:00:00]} Bxd3 {[%emt 0:00:00]} 10. Qxd3 {[%emt 0:00:00]} Ngf6 {[%emt 0:00:00]} 11. Bd2 {[%emt 0:00:00]} Qc7 {[%emt 0:00:00]} 12. O-O-O {[%emt 0:00:00]} e6 {[%emt 0:00:00]} 13. Rhe1 {[%emt 0:00:00]} O-O-O {[%emt 0:00:19]} 14. Kb1 {[%emt 0:03:08]} Bd6 {[%emt 0:02:38]} 15. c4 {[%emt 0:01:01]} c5 {[%emt 0:01:20]} 16. Bc3 {[%emt 0:01:01]} Rhe8 {[%emt 0:07:33]} 17. a3 {[%emt 0:15:39]} cxd4 {[%emt 0:04:17]} 18. Nxd4 {[%emt 0:00:01]} Nc5 {[%emt 0:04:26]} 19. Qc2 {[%emt 0:03:38]} a6 {[%emt 0:01:08]} 20. Qe2 {[%emt 0:11:23]} Bxg3 {[%emt 0:20:50]} 21. fxg3 {[%emt 0:03:38]} Nce4 {[%emt 0:00:38]} 22. Qe3 {[%emt 0:08:06]} Qxc4 {[%emt 0:04:12]} 23. Rc1 {[%emt 0:02:02]} Kb8 {[%emt 0:03:11]} 24. Nc6+ {[%emt 0:00:41]} Qxc6 {[%emt 0:02:26]} 25. Be5+ {[%emt 0:00:00]} Ka8 {[%emt 0:00:31]} 26. Rxc6 {[%emt 0:00:00]} bxc6 {[%emt 0:00:00]} 27. Qb6 {[%emt 0:00:00]} Rd7 {[%emt 0:00:18]} 28. Qxa6+ {[%emt 0:00:00]} Ra7 {[%emt 0:00:00]} 29. Qxc6+ {[%emt 0:00:00]} Rb7 {[%emt 0:00:00]} 30. Rxe4 {[%emt 0:00:00]} 1-0

[Event "Klatovy Open-B 2024"]
[Site "Klatovy"]
[Date "2024.07.05"]
[Round "7.9"]
[White "Kusova, Nikola"]
[Black "Trejbal, Jindrich"]
[Result "1/2-1/2"]
[ECO "C27"]
[WhiteElo "1696"]
[BlackElo "1953"]
[Annotator "NA RC"]
[PlyCount "47"]
[EventDate "2024.06.21"]
[EventType "swiss"]
[EventCountry "CZE"]
[SourceTitle "playchess.com"]
[Source "ChessBase"]
[SourceQuality "1"]
[TimeControl "40/7200:0"]

1. e4 {[%emt 0:00:00]} e5 {[%emt 0:00:00]} 2. Nc3 {[%emt 0:00:00]} Nf6 {[%emt 0:00:00]} 3. Bc4 {[%emt 0:00:00]} Nxe4 {[%emt 0:00:00]} 4. Qh5 {[%emt 0:00:00]} Nd6 {[%emt 0:00:00]} 5. Bb3 {[%emt 0:00:00]} Be7 {[%emt 0:00:00]} 6. Nf3 {[%emt 0:00:00]} O-O {[%emt 0:01:01]} 7. Nxe5 {[%emt 0:00:00]} Nc6 {[%emt 0:04:34]} 8. O-O {[%emt 0:03:55]} Nxe5 {[%emt 0:05:40]} 9. Qxe5 {[%emt 0:00:00]} Bf6 {[%emt 0:02:05]} 10. Qg3 {[%emt 0:03:01]} Nf5 {[%emt 0:03:28]} 11. Qf4 {[%emt 0:03:24]} d6 {[%emt 0:04:13]} 12. d3 {[%emt 0:05:15]} Be5 {[%emt 0:12:34]} 13. Qg5 {[%emt 0:04:05]} Qxg5 {[%emt 0:02:34]} 14. Bxg5 {[%emt 0:00:00]} c6 {[%emt 0:02:25]} 15. Rfe1 {[%emt 0:02:11]} Be6 {[%emt 0:04:28]} 16. Bxe6 {[%emt 0:03:18]} fxe6 {[%emt 0:00:00]} 17. Ne2 {[%emt 0:03:53]} b5 {[%emt 0:06:37]} 18. c3 {[%emt 0:02:19]} h6 {[%emt 0:02:41]} 19. Bd2 {[%emt 0:04:29]} c5 {[%emt 0:04:50]} 20. Rad1 {[%emt 0:04:06]} Rac8 {[%emt 0:06:05]} 21. Bf4 {[%emt 0:04:56]} Bxf4 {[%emt 0:06:16]} 22. Nxf4 {[%emt 0:00:00]} e5 {[%emt 0:00:40]} 23. Nd5 {[%emt 0:00:27]} Rf7 {[%emt 0:04:14]} 24. f3 {[%emt 0:04:06]} 1/2-1/2

[Event "Klatovy Open-B 2024"]
[Site "Klatovy"]
[Date "2024.07.05"]
[Round "7.10"]
[White "Vratny, Vojtech"]
[Black "Brychta, David"]
[Result "0-1"]
[ECO "E11"]
[WhiteElo "1564"]
[BlackElo "2124"]
[Annotator "NA RC"]
[PlyCount "66"]
[EventDate "2024.06.21"]
[EventType "swiss"]
[EventCountry "CZE"]
[SourceTitle "playchess.com"]
[Source "ChessBase"]
[SourceQuality "1"]
[TimeControl "40/7200:0"]

1. d4 {[%emt 0:00:00]} Nf6 {[%emt 0:00:00]} 2. c4 {[%emt 0:00:00]} e6 {[%emt 0:00:00]} 3. Nf3 {[%emt 0:00:00]} Bb4+ {[%emt 0:00:00]} 4. Bd2 {[%emt 0:00:00]} Bxd2+ {[%emt 0:00:00]} 5. Qxd2 {[%emt 0:00:00]} O-O {[%emt 0:00:26]} 6. Nc3 {[%emt 0:00:00]} d5 {[%emt 0:00:36]} 7. e3 {[%emt 0:00:00]} b6 {[%emt 0:00:27]} 8. cxd5 {[%emt 0:00:00]} Nxd5 {[%emt 0:00:00]} 9. Bd3 {[%emt 0:00:18]} Nxc3 {[%emt 0:02:54]} 10. bxc3 {[%emt 0:01:07]} Bb7 {[%emt 0:00:00]} 11. e4 {[%emt 0:02:44]} Nd7 {[%emt 0:00:19]} 12. O-O {[%emt 0:00:06]} c5 {[%emt 0:03:13]} 13. Rac1 {[%emt 0:00:36]} Rc8 {[%emt 0:07:26]} 14. Rfd1 {[%emt 0:00:59]} Qe7 {[%emt 0:02:05]} 15. Qe3 {[%emt 0:01:54]} Rc7 {[%emt 0:06:39]} 16. c4 {[%emt 0:01:07]} cxd4 {[%emt 0:00:27]} 17. Nxd4 {[%emt 0:00:18]} Ba6 {[%emt 0:06:46]} 18. f4 {[%emt 0:03:54]} Nc5 {[%emt 0:00:06]} 19. f5 {[%emt 0:00:34]} e5 {[%emt 0:03:58]} 20. Nf3 {[%emt 0:00:36]} Rfc8 {[%emt 0:00:35]} 21. Nd2 {[%emt 0:00:48]} Qd7 {[%emt 0:09:01]} 22. Be2 {[%emt 0:00:24]} Qe7 {[%emt 0:01:09]} 23. Bg4 {[%emt 0:01:54]} Rd8 {[%emt 0:01:39]} 24. Nb3 {[%emt 0:00:23]} Rxd1+ {[%emt 0:00:00]} 25. Bxd1 {[%emt 0:00:00]} Bb7 {[%emt 0:10:42]} 26. Nxc5 {[%emt 0:01:07]} Rxc5 {[%emt 0:00:25]} 27. Be2 {[%emt 0:00:53]} Ra5 {[%emt 0:00:42]} 28. Rc2 {[%emt 0:00:29]} Ra3 {[%emt 1:00:25]} 29. Bd3 {[%emt 0:01:23]} h6 {[%emt 0:00:00]} 30. Qd2 {[%emt 0:00:19]} Qc5+ {[%emt 0:00:00]} 31. Kh1 {[%emt 0:00:22]} Qd4 {[%emt 0:00:00]} 32. Be2 {[%emt 0:00:29]} Qxe4 {[%emt 0:00:00]} 33. Bf3 {[%emt 0:02:28]} Qxf5 {[%emt 0:00:00]} 0-1

[Event "Klatovy Open-B 2024"]
[Site "Klatovy"]
[Date "2024.07.05"]
[Round "7.11"]
[White "Bukvaj, Martin"]
[Black "Kasik, Denis"]
[Result "1/2-1/2"]
[ECO "E06"]
[WhiteElo "1687"]
[BlackElo "1596"]
[Annotator "NA RC"]
[PlyCount "89"]
[EventDate "2024.06.21"]
[EventType "swiss"]
[EventCountry "CZE"]
[SourceTitle "playchess.com"]
[Source "ChessBase"]
[SourceQuality "1"]
[TimeControl "40/7200:0"]

1. d4 {[%emt 0:00:00]} Nf6 {[%emt 0:00:00]} 2. Nf3 {[%emt 0:00:00]} d5 {[%emt 0:00:00]} 3. g3 {[%emt 0:00:01]} e6 {[%emt 0:00:00]} 4. Bg2 {[%emt 0:00:14]} c5 {[%emt 0:00:00]} 5. O-O {[%emt 0:00:12]} Be7 {[%emt 0:00:05]} 6. c4 {[%emt 0:02:29]} O-O {[%emt 0:00:35]} 7. cxd5 {[%emt 0:07:30]} Nxd5 {[%emt 0:00:31]} 8. e4 {[%emt 0:00:37]} Nf6 {[%emt 0:02:42]} 9. Nc3 {[%emt 0:00:44]} cxd4 {[%emt 0:01:41]} 10. Nxd4 {[%emt 0:02:09]} e5 {[%emt 0:03:43]} 11. Nf5 {[%emt 0:06:07]} Nc6 {[%emt 0:03:09]} 12. Nxe7+ {[%emt 0:04:43]} Qxe7 {[%emt 0:10:44]} 13. Bg5 {[%emt 0:07:34]} Rd8 {[%emt 0:21:02]} 14. Nd5 {[%emt 0:07:35]} Qd6 {[%emt 0:02:04]} 15. Bxf6 {[%emt 0:07:38]} gxf6 {[%emt 0:00:09]} 16. Qh5 {[%emt 0:01:51]} Ne7 {[%emt 0:04:47]} 17. Rad1 {[%emt 0:04:25]} Nxd5 {[%emt 0:00:43]} 18. Rxd5 {[%emt 0:00:00]} Qe7 {[%emt 0:02:11]} 19. Rxd8+ {[%emt 0:09:34]} Qxd8 {[%emt 0:00:00]} 20. Rd1 {[%emt 0:08:52]} Qe7 {[%emt 0:10:15]} 21. Qe2 {[%emt 0:01:53]} Be6 {[%emt 0:01:27]} 22. a3 {[%emt 0:00:33]} Rd8 {[%emt 0:05:57]} 23. Rd2 {[%emt 0:01:54]} Rxd2 {[%emt 0:03:16]} 24. Qxd2 {[%emt 0:00:00]} Qd7 {[%emt 0:00:34]} 25. Qxd7 {[%emt 0:00:00]} Bxd7 {[%emt 0:00:00]} 26. Kf1 {[%emt 0:00:00]} Kf8 {[%emt 0:01:51]} 27. Ke2 {[%emt 0:00:00]} Ke7 {[%emt 0:00:00]} 28. Kd3 {[%emt 0:00:00]} Kd6 {[%emt 0:02:13]} 29. b4 {[%emt 0:00:00]} Kc6 {[%emt 0:02:16]} 30. Kc3 {[%emt 0:00:00]} Kb6 {[%emt 0:03:46]} 31. Bf1 {[%emt 0:00:00]} Bc6 {[%emt 0:01:35]} 32. Bd3 {[%emt 0:00:00]} Bb5 {[%emt 0:07:05]} 33. Bc4 {[%emt 0:00:00]} Bxc4 {[%emt 0:00:02]} 34. Kxc4 {[%emt 0:00:00]} Kc6 {[%emt 0:00:00]} 35. a4 {[%emt 0:00:00]} b6 {[%emt 0:07:49]} 36. f4 {[%emt 0:01:01]} a6 {[%emt 0:03:15]} 37. b5+ {[%emt 0:00:00]} axb5+ {[%emt 0:00:00]} 38. axb5+ {[%emt 0:00:00]} Kd6 {[%emt 0:00:33]} 39. h3 {[%emt 0:00:00]} exf4 {[%emt 0:02:02]} 40. gxf4 {[%emt 0:00:00]} Ke6 {[%emt 0:00:23]} 41. Kd4 {[%emt 1:59:15]} Kd6 {[%emt 1:59:59]} 42. h4 {[%emt 0:00:15]} Ke6 {[%emt 0:00:37]} 43. h5 {[%emt 0:00:36]} h6 {[%emt 0:00:47]} 44. Kc4 {[%emt 0:00:46]} Kd6 {[%emt 0:00:17]} 45. Kd4 {[%emt 0:00:09]} 1/2-1/2